bitfinex-derivatives/quotes_BTCF0:USTF0_20251209
["timestamp","ask_amount","ask_price","bid_price","bid_amount"]
[1765304715702,0.0106267,94095.0,94088.0,0.02987]
[1765304715902,0.00015941,94098.0,94097.0,0.09169]
[1765304717509,0.00015941,94098.0,94097.0,0.09369]
[1765304717994,0.00015941,94098.0,94097.0,0.09569]
[1765304719506,0.00015941,94098.0,94097.0,0.09269]
[1765304719698,0.00015941,94098.0,94097.0,0.09469]
[1765304720302,0.00015941,94098.0,94097.0,0.09369]
[1765304721505,0.09445941,94098.0,94097.0,0.09369]
[1765304722209,0.09445941,94098.0,94097.0,0.09469]
[1765304722808,0.09445941,94098.0,94097.0,0.09369]
[1765304723008,0.09445941,94098.0,94097.0,0.09269]
[1765304723907,0.09445941,94098.0,94097.0,0.001]
[1765304724114,0.1028082,94081.0,94080.0,0.11984]
[1765304725204,0.1028082,94081.0,94080.0,0.12184]
[1765304725405,0.1028082,94081.0,94080.0,0.002]
[1765304725605,0.1028082,94081.0,94080.0,0.09497]
[1765304725913,0.1048082,94081.0,94080.0,0.09297]
[1765304726216,0.1038082,94081.0,94080.0,0.09297]
[1765304726410,0.1038082,94081.0,94077.0,0.02872]
[1765304726714,0.09218,94080.0,94070.0,0.0106295]
[1765304727307,0.09218,94080.0,94065.0,0.0010631]
[1765304727308,0.09218,94080.0,94079.0,0.09312941]
[1765304727714,0.09218,94080.0,94079.0,0.00015941]
[1765304728608,0.09218,94080.0,94079.0,0.09312941]
[1765304728916,0.09318,94080.0,94079.0,0.09312941]
[1765304729309,0.09418,94080.0,94079.0,0.09312941]
[1765304729509,0.09318,94080.0,94079.0,0.09312941]
[1765304730114,0.09418,94080.0,94079.0,0.09312941]
[1765304730314,0.09418,94080.0,94079.0,0.04471941]
[1765304731119,0.09418,94080.0,94079.0,0.09312941]
[1765304731614,0.09418,94080.0,94079.0,0.10375791]
[1765304731915,0.002,94080.0,94079.0,0.10375791]
[1765304732221,0.001,94080.0,94079.0,0.09312941]
[1765304733317,0.001,94080.0,94079.0,0.09512941]
[1765304733911,0.0106278,94085.0,94083.0,0.0106279]
[1765304734112,0.0106278,94085.0,94084.0,0.09297]
[1765304734318,0.14937068,94089.0,94088.0,0.09297]
[1765304734515,0.1028074,94089.0,94088.0,0.09297]
[1765304735321,0.0560274,94089.0,94088.0,0.09297]
[1765304735817,0.1028074,94089.0,94088.0,0.09297]
[1765304736509,0.00015941,94098.0,94097.0,0.09297]
[1765304736916,0.09233941,94098.0,94097.0,0.09297]
[1765304738121,0.04655941,94098.0,94097.0,0.09297]
[1765304738414,0.00215941,94098.0,94097.0,0.09297]
[1765304738916,0.14937068,94120.0,94104.0,0.02872]
[1765304739125,0.1028039,94119.0,94118.0,0.09297]
[1765304739644,0.0106239,94119.0,94118.0,0.09297]
[1765304739810,0.1028039,94119.0,94118.0,0.09297]
[1765304740423,0.0106239,94119.0,94118.0,0.09297]
[1765304740922,0.0560239,94119.0,94118.0,0.09297]
[1765304741917,0.0620239,94119.0,94118.0,0.09297]
[1765304742122,0.0166239,94119.0,94118.0,0.09297]
[1765304743024,0.0620239,94119.0,94118.0,0.09297]
[1765304744012,0.0514,94119.0,94118.0,0.1035941]
[1765304744216,0.006,94119.0,94118.0,0.1035941]
[1765304746022,0.05719068,94130.0,94129.0,0.1035928]
[1765304746217,0.0106227,94130.0,94129.0,0.1035928]
[1765304746818,0.0106227,94130.0,94129.0,0.09297]
[1765304747624,0.0116227,94130.0,94129.0,0.09297]
[1765304749319,0.0106227,94130.0,94129.0,0.09397]
[1765304750028,0.1026027,94130.0,94129.0,0.09397]
[1765304751624,0.18505708,94130.0,94129.0,0.09397]
[1765304751826,0.18505708,94130.0,94129.0,0.04556]
[1765304752028,0.0812864,94130.0,94129.0,0.09365]
[1765304752215,0.15963711,94130.0,94129.0,0.09365]
[1765304752419,0.18490081,94130.0,94129.0,0.09365]
[1765304752621,0.18490081,94130.0,94129.0,0.09265]
[1765304754329,0.1278664,94130.0,94129.0,0.09265]
[1765304759034,0.18490081,94130.0,94129.0,0.09265]
[1765304759226,0.1278664,94130.0,94129.0,0.09265]
[1765304759426,0.18490081,94130.0,94129.0,0.09265]
[1765304759837,0.13832081,94130.0,94129.0,0.09265]
[1765304760334,0.00106225,94140.0,94139.0,0.1057917]
[1765304760934,0.104851,94146.0,94145.0,0.09517]
[1765304761436,0.0106223,94134.0,94130.0,0.00015941]
[1765304761632,0.0106223,94134.0,94133.0,0.09517]
[1765304762036,0.002,94140.0,94139.0,0.09517]
[1765304762432,0.07648041,94161.0,94160.0,0.09517]
[1765304762433,0.0106592,94161.0,94160.0,0.09517]
[1765304762734,4e-05,94161.0,94160.0,0.09517]
[1765304762938,0.00106197,94165.0,94164.0,0.09517]
[1765304763134,0.00106197,94165.0,94164.0,0.1057889]
[1765304764237,0.00206197,94165.0,94164.0,0.1057889]
[1765304765135,0.00206197,94165.0,94164.0,0.1107889]
[1765304765736,0.00106197,94165.0,94164.0,0.1127889]
[1765304765946,0.0106177,94175.0,94174.0,0.09517]
[1765304768041,0.1048477,94175.0,94174.0,0.09917]
[1765304771338,0.1048477,94175.0,94174.0,0.004]
[1765304771742,0.104849,94164.0,94163.0,0.09517]
[1765304771944,0.02682,94185.0,94170.0,0.09517]
[1765304772137,0.1289065,94185.0,94184.0,0.04708]
[1765304772338,0.15380043,94185.0,94184.0,0.04708]
[1765304773533,0.1007175,94176.0,94175.0,0.08918932]
[1765304773739,0.12561143,94176.0,94175.0,0.08918932]
[1765304774746,0.15218143,94176.0,94175.0,0.00015932]
[1765304774947,0.15218143,94176.0,94136.0,0.02642]
[1765304774948,0.1007194,94160.0,94159.0,0.08903]
[1765304775143,0.12561333,94160.0,94159.0,0.08903]
[1765304776347,0.11499393,94160.0,94159.0,0.09603]
[1765304776534,0.12561323,94160.0,94159.0,0.09603]
[1765304777240,0.11499393,94160.0,94159.0,0.09603]
[1765304779054,0.14191393,94160.0,94159.0,0.09846]
[1765304779352,0.14191393,94160.0,94159.0,0.007]
[1765304779555,0.02489393,94160.0,94159.0,0.10264]
[1765304779738,0.11677393,94160.0,94159.0,0.10264]
[1765304780241,0.19321434,94160.0,94159.0,0.10264]
[1765304780443,0.11677393,94160.0,94159.0,0.10264]
[1765304780643,0.11677393,94160.0,94159.0,0.09764]
[1765304780840,0.11677393,94160.0,94159.0,0.10164]
[1765304781154,0.02489393,94160.0,94159.0,0.10164]
[1765304781357,0.02489393,94160.0,94159.0,0.10064]
[1765304781550,0.02489393,94160.0,94159.0,0.10164]
[1765304781858,0.02489393,94160.0,94159.0,0.10064]
[1765304782056,0.02489393,94160.0,94159.0,0.10264]
[1765304782252,0.07598022,94174.0,94168.0,0.11989]
[1765304782454,0.02344814,94169.0,94168.0,0.11989]
[1765304783959,0.02344814,94169.0,94168.0,0.12289]
[1765304784253,0.09566058,94194.0,94189.0,0.09564]
[1765304784254,0.07598022,94192.0,94189.0,0.09564]
[1765304784449,0.0106159,94191.0,94189.0,0.09564]
[1765304784660,0.09294169,94190.0,94189.0,0.09564]
[1765304784954,0.00106169,94190.0,94189.0,0.09564]
[1765304785344,0.09294169,94190.0,94189.0,0.09764]
[1765304785545,0.00106169,94190.0,94189.0,0.09764]
[1765304787057,0.10355759,94190.0,94189.0,0.09764]
[1765304787658,0.10355759,94190.0,94189.0,0.002]
[1765304787659,0.16057721,94190.0,94189.0,0.002]
[1765304787962,0.16057721,94190.0,94189.0,0.04989]
[1765304788156,0.00106169,94190.0,94189.0,0.108256]
[1765304789357,0.14996131,94190.0,94189.0,0.09764]
[1765304790248,0.05808131,94190.0,94189.0,0.09764]
[1765304791151,0.10628131,94190.0,94189.0,0.09764]
[1765304791356,0.10628131,94190.0,94189.0,0.108256]
[1765304791558,0.04926169,94190.0,94189.0,0.09764]
[1765304792363,0.00106169,94190.0,94189.0,0.09764]
[1765304793164,0.05819836,94190.0,94189.0,0.09764]
[1765304793362,0.00106169,94190.0,94189.0,0.09764]
[1765304795459,0.04926169,94190.0,94189.0,0.09764]
[1765304795660,0.09294169,94190.0,94189.0,0.002]
[1765304796065,0.09294169,94190.0,94189.0,0.071744]
[1765304796256,0.17328433,94190.0,94189.0,0.071744]
[1765304799156,0.11617398,94190.0,94189.0,0.071744]
[1765304799356,0.07249398,94190.0,94189.0,0.071744]
[1765304800265,0.11617398,94190.0,94189.0,0.071744]
[1765304801767,0.07249398,94190.0,94189.0,0.071744]
[1765304802659,0.02429398,94190.0,94189.0,0.071744]
[1765304803465,0.07249398,94190.0,94189.0,0.071744]
[1765304804267,0.11617398,94190.0,94189.0,0.071744]
[1765304808460,0.09188,94188.0,94187.0,0.0106162]
[1765304808770,0.11511229,94188.0,94187.0,0.0106162]
[1765304808969,0.11511229,94188.0,94187.0,0.0585062]
[1765304809173,0.11511229,94188.0,94187.0,0.1035262]
[1765304809770,0.11511229,94188.0,94187.0,0.1045262]
[1765304810973,0.11511229,94188.0,94187.0,0.1035262]
[1765304811172,0.11511229,94188.0,94187.0,0.1085262]
[1765304811770,0.09188,94188.0,94187.0,0.1085262]
[1765304812169,0.09188,94188.0,94187.0,0.1035262]
[1765304812366,0.09188,94188.0,94187.0,0.1105262]
[1765304812770,0.00106169,94190.0,94189.0,0.102686]
[1765304814274,0.09619169,94190.0,94189.0,0.102686]
[1765304814979,0.09619169,94190.0,94189.0,0.107686]
[1765304815171,0.09619169,94190.0,94189.0,0.111686]
[1765304815574,0.09619169,94190.0,94189.0,0.106686]
[1765304815763,0.00106169,94190.0,94189.0,0.111686]
[1765304817580,9e-08,94190.0,94189.0,0.111686]
[1765304818275,9e-08,94190.0,94189.0,0.106686]
[1765304818476,9e-08,94190.0,94189.0,0.111686]
[1765304818681,9e-08,94190.0,94189.0,0.15054658]
[1765304818866,9e-08,94190.0,94189.0,0.112686]
[1765304819267,9e-08,94190.0,94189.0,0.113686]
[1765304819569,9e-08,94190.0,94189.0,0.503686]
[1765304820777,9e-08,94190.0,94189.0,0.54153113]
[1765304821181,9e-08,94190.0,94189.0,0.503686]
[1765304821381,1e-08,94215.0,94214.0,0.1026832]
[1765304822773,1e-08,94215.0,94214.0,0.54319024]
[1765304822973,1e-08,94215.0,94214.0,0.57155763]
[1765304823175,1e-08,94215.0,94214.0,0.32319024]
[1765304823380,1e-08,94215.0,94214.0,0.32519024]
[1765304823773,1e-08,94215.0,94214.0,0.11519024]
[1765304824176,1e-08,94215.0,94214.0,0.1046832]
[1765304824576,0.09513001,94215.0,94214.0,0.1046832]
[1765304825373,1e-08,94215.0,94214.0,0.0126132]
[1765304826384,0.09513001,94215.0,94214.0,0.1046832]
[1765304826782,1e-08,94215.0,94214.0,0.0126132]
[1765304827467,0.09513001,94215.0,94214.0,0.1046832]
[1765304827673,0.10574311,94215.0,94214.0,0.002]
[1765304827869,0.09513001,94215.0,94214.0,0.002]
[1765304828384,1e-08,94215.0,94214.0,0.002]
[1765304828579,0.09513001,94215.0,94214.0,0.09407]
[1765304828775,0.09513001,94215.0,94214.0,0.002]
[1765304829280,0.09513001,94215.0,94214.0,0.09407]
[1765304829674,0.09513001,94215.0,94214.0,0.04905]
[1765304829974,0.09513001,94215.0,94214.0,0.002]
[1765304831081,0.09777,94206.0,94205.0,0.00015923]
[1765304831785,0.09777,94206.0,94205.0,0.09729923]
[1765304831987,0.02706,94212.0,94205.0,0.09729923]
[1765304831988,0.07571,94212.0,94211.0,0.09714]
[1765304832277,0.04865,94212.0,94211.0,0.09714]
[1765304832483,0.12483,94212.0,94211.0,0.09714]
[1765304832672,1e-08,94215.0,94205.0,0.00315923]
[1765304832873,1e-08,94215.0,94211.0,0.0106136]
[1765304833470,1e-08,94215.0,94211.0,0.0126136]
[1765304833872,0.04865,94212.0,94211.0,0.0618436]
[1765304834076,0.09777,94212.0,94211.0,0.1077536]
[1765304834275,0.09777,94212.0,94211.0,0.1087536]
[1765304835181,0.09777,94212.0,94211.0,0.1097536]
[1765304835581,0.04865,94212.0,94211.0,0.1107536]
[1765304838290,1e-08,94215.0,94214.0,0.0106132]
[1765304839385,1e-08,94215.0,94214.0,0.2906132]
[1765304839580,1e-08,94215.0,94214.0,0.0116132]
[1765304840087,1e-08,94215.0,94214.0,0.3616132]
[1765304840293,1e-08,94215.0,94214.0,0.0116132]
[1765304840495,0.09375001,94215.0,94214.0,0.1099732]
[1765304840686,0.09375001,94215.0,94214.0,0.09936]
[1765304845992,0.04701001,94215.0,94214.0,0.09936]
[1765304846192,0.09375001,94215.0,94214.0,0.002]
[1765304846387,0.1043641,94206.0,94205.0,0.00015923]
[1765304847494,0.1043641,94206.0,94205.0,0.00315923]
[1765304847690,0.1043641,94206.0,94205.0,0.00415923]
[1765304847891,0.1043641,94206.0,94205.0,0.00115923]
[1765304848091,0.1043641,94206.0,94205.0,0.00215923]
[1765304850093,0.1043641,94206.0,94205.0,0.00115923]
[1765304850684,0.1043641,94206.0,94205.0,0.00215923]
[1765304851384,0.1043641,94206.0,94205.0,0.00115923]
[1765304851585,0.1043641,94206.0,94205.0,0.00215923]
[1765304852293,0.1043641,94206.0,94205.0,0.00115923]
[1765304852588,0.09375,94206.0,94205.0,0.09851923]
[1765304852790,0.04701,94206.0,94205.0,0.09851923]
[1765304852997,0.09375,94206.0,94205.0,0.09851923]
[1765304853386,0.09375,94206.0,94205.0,0.10051923]
[1765304853985,0.09375,94206.0,94205.0,0.05173923]
[1765304854188,0.09375,94206.0,94205.0,0.10051923]
[1765304854386,0.09375,94206.0,94205.0,0.05173923]
[1765304854682,0.09375,94206.0,94205.0,0.05073923]
[1765304854897,0.09375,94206.0,94205.0,0.05273923]
[1765304855198,0.09375,94206.0,94205.0,0.10151923]
[1765304855493,0.09375,94206.0,94205.0,0.09951923]
[1765304855797,0.09375,94206.0,94205.0,0.00415923]
[1765304856186,0.09375,94206.0,94205.0,0.05273923]
[1765304856385,0.09375,94206.0,94205.0,0.05073923]
[1765304856594,0.09375,94206.0,94205.0,0.05273923]
[1765304857598,0.09375,94206.0,94205.0,0.00415923]
[1765304858197,0.09375,94206.0,94205.0,0.00215923]
[1765304858396,0.09375,94206.0,94205.0,0.00415923]
[1765304858597,0.09375,94206.0,94205.0,0.05273923]
[1765304858786,0.09375,94206.0,94205.0,0.10151923]
[1765304858989,0.1043635,94212.0,94211.0,0.09736]
[1765304859187,0.1043635,94212.0,94211.0,0.1079736]
[1765304859388,0.1043635,94212.0,94211.0,0.0591936]
[1765304859603,0.1043635,94212.0,94211.0,0.04858]
[1765304860099,0.1043635,94212.0,94211.0,0.001]
[1765304861488,0.1043635,94212.0,94211.0,0.002]
[1765304861696,0.1043635,94212.0,94211.0,0.09936]
[1765304862685,0.1043635,94212.0,94211.0,0.002]
[1765304864103,0.1043635,94212.0,94205.0,0.00015923]
[1765304864104,0.1043641,94206.0,94205.0,0.00015923]
[1765304864486,0.1043641,94206.0,94205.0,0.09751923]
[1765304864691,0.09375,94206.0,94205.0,0.09751923]
[1765304865498,0.09375,94206.0,94205.0,0.09951923]
[1765304865701,0.09375,94206.0,94205.0,0.10151923]
[1765304866391,0.09375,94206.0,94205.0,0.09951923]
[1765304866592,0.09375,94206.0,94205.0,0.10151923]
[1765304867686,0.09375,94206.0,94205.0,0.09951923]
[1765304867891,0.09375,94206.0,94205.0,0.10051923]
[1765304868303,0.09375,94206.0,94205.0,0.09951923]
[1765304868502,0.09375,94206.0,94205.0,0.10051923]
[1765304868905,0.09375,94206.0,94205.0,0.09951923]
[1765304869197,0.09375,94206.0,94205.0,0.10051923]
[1765304870089,1e-08,94215.0,94213.0,0.1068133]
[1765304870090,0.09901,94214.0,94213.0,0.1068133]
[1765304871289,0.10001,94214.0,94213.0,0.1068133]
[1765304871902,0.10001,94214.0,94213.0,0.1078133]
[1765304874902,0.001,94214.0,94213.0,0.1346633]
[1765304875093,0.09905,94232.0,94231.0,0.1068113]
[1765304875298,0.09901,94221.0,94220.0,0.1068126]
[1765304877103,0.09901,94221.0,94220.0,0.0106126]
[1765304877305,0.09901,94213.0,94212.0,0.1068135]
[1765304878212,0.04912,94213.0,94212.0,0.1068135]
[1765304878597,0.09901,94213.0,94212.0,0.1068135]
[1765304878801,0.09901,94213.0,94212.0,0.1078135]
[1765304879806,0.09901,94213.0,94212.0,0.0116135]
[1765304880305,0.09901,94224.0,94223.0,0.0106122]
[1765304880499,0.02978,94227.0,94212.0,0.001]
[1765304880500,0.09901,94213.0,94212.0,0.001]
[1765304880699,0.09901,94213.0,94212.0,0.0604535]
[1765304880893,0.09901,94213.0,94212.0,0.1078135]
[1765304881100,0.09901,94213.0,94212.0,0.0116135]
[1765304881404,0.0106141,94210.0,94209.0,0.1068137]
[1765304881605,0.1096241,94206.0,94205.0,0.00015923]
[1765304882304,0.1096241,94206.0,94178.0,0.07719871]
[1765304882305,0.09901,94179.0,94178.0,0.07719871]
[1765304882606,0.1096273,94178.0,94177.0,0.0106174]
[1765304882803,0.1096273,94178.0,94174.0,0.02835871]
[1765304882804,0.1096277,94175.0,94174.0,0.0106177]
[1765304883393,0.09901,94175.0,94174.0,0.0594577]
[1765304883599,0.09901,94175.0,94174.0,0.1068177]
[1765304884223,0.12894892,94184.0,94183.0,0.0594567]
[1765304884402,0.02993892,94184.0,94179.0,0.0106171]
[1765304884599,0.12879,94176.0,94175.0,0.0106176]
[1765304884800,0.12879,94176.0,94175.0,0.1087476]
[1765304886203,0.12879,94176.0,94175.0,0.0106176]
[1765304886408,0.12879,94176.0,94175.0,0.1080676]
[1765304886603,0.09901,94176.0,94175.0,0.1080676]
[1765304886912,0.12604,94176.0,94175.0,0.1100676]
[1765304887106,0.12604,94176.0,94175.0,0.1120676]
[1765304887310,0.12604,94176.0,94175.0,0.1100676]
[1765304887614,0.12604,94176.0,94175.0,0.1120676]
[1765304890814,0.09901,94176.0,94175.0,0.1120676]
[1765304891311,0.12604,94176.0,94175.0,0.1120676]
[1765304894312,0.09901,94176.0,94175.0,0.1120676]
[1765304894910,0.12604,94176.0,94175.0,0.1120676]
[1765304895218,0.12604,94176.0,94175.0,0.004]
[1765304895513,0.12604,94176.0,94175.0,0.05216]
[1765304896313,0.12604,94176.0,94175.0,0.05116]
[1765304896519,0.12604,94176.0,94175.0,0.003]
[1765304897230,0.0942,94166.0,94165.0,0.0012212]
[1765304897417,0.1048186,94166.0,94165.0,0.0012212]
[1765304898014,0.0942,94166.0,94165.0,0.0986712]
[1765304898213,0.12123,94176.0,94175.0,0.09745]
[1765304898617,0.12123,94176.0,94175.0,0.1090676]
[1765304898926,0.0942,94176.0,94175.0,0.1090676]
[1765304899217,0.04735,94176.0,94175.0,0.1080676]
[1765304899418,0.09724,94176.0,94175.0,0.1080676]
[1765304899612,0.12448,94176.0,94175.0,0.1080676]
[1765304899919,0.12448,94176.0,94175.0,0.0607776]
[1765304900112,0.12448,94176.0,94175.0,0.0126176]
[1765304900312,0.12448,94176.0,94175.0,0.0146176]
[1765304900910,0.12448,94176.0,94175.0,0.1064276]
[1765304901110,0.12448,94176.0,94175.0,0.1054276]
[1765304901516,0.12448,94176.0,94175.0,0.1044276]
[1765304901911,0.04735,94176.0,94175.0,0.1044276]
[1765304902106,0.12728892,94184.0,94183.0,0.1024267]
[1765304902813,0.00015892,94184.0,94183.0,0.1024267]
[1765304903418,0.00015892,94184.0,94183.0,0.1034267]
[1765304904124,0.00015892,94184.0,94183.0,0.1024267]
[1765304904324,0.00015892,94184.0,94183.0,0.13179741]
[1765304905230,0.00015892,94184.0,94183.0,0.1034267]
[1765304908116,0.09750892,94184.0,94183.0,0.1034267]
[1765304908328,0.09750892,94184.0,94183.0,0.0116167]
[1765304908631,0.09750892,94184.0,94183.0,0.0580067]
[1765304908826,0.09750892,94184.0,94183.0,0.1034267]
[1765304909332,0.09750892,94184.0,94183.0,0.0116167]
[1765304910616,0.00015892,94184.0,94183.0,0.1034267]
[1765304913029,0.0571837,94214.0,94183.0,0.1034267]
[1765304913030,0.0571837,94218.0,94214.0,0.09181]
[1765304913229,0.0571837,94231.0,94214.0,0.09181]
[1765304913527,0.09735,94227.0,94226.0,0.0570018]
[1765304913926,0.09735,94227.0,94226.0,0.1024218]
[1765304914118,0.09735,94227.0,94226.0,0.0570018]
[1765304914318,0.09735,94227.0,94226.0,0.1024218]
[1765304914515,0.09735,94227.0,94226.0,0.0106118]
[1765304915022,0.09835,94227.0,94226.0,0.0106118]
[1765304915230,0.04846,94227.0,94226.0,0.1024218]
[1765304915415,0.09835,94227.0,94226.0,0.0106118]
[1765304915618,0.09935,94227.0,94226.0,0.0106118]
[1765304916517,0.09935,94227.0,94226.0,0.0570018]
[1765304917031,0.09935,94227.0,94226.0,0.0106118]
[1765304922329,0.09935,94227.0,94217.0,0.00015923]
[1765304922525,0.09735,94218.0,94217.0,0.00015923]
[1765304922837,0.09735,94218.0,94217.0,0.01077213]
[1765304923036,0.09735,94218.0,94217.0,0.05716213]
[1765304923523,0.09735,94218.0,94217.0,0.10258213]
[1765304923729,0.09835,94218.0,94217.0,0.10258213]
[1765304925434,0.09835,94218.0,94217.0,0.01077213]
[1765304928327,0.09835,94218.0,94217.0,0.05716213]
[1765304928633,0.09835,94218.0,94217.0,0.10258213]
[1765304930431,0.09835,94218.0,94217.0,0.01077213]
[1765304930636,0.09835,94218.0,94217.0,0.09500923]
[1765304931329,0.09835,94218.0,94217.0,0.00015923]
[1765304931837,0.09835,94218.0,94217.0,0.04591923]
[1765304932227,0.09835,94218.0,94217.0,0.00015923]
[1765304932622,0.09835,94218.0,94217.0,0.09500923]
[1765304933939,0.04846,94218.0,94217.0,0.09500923]
[1765304934139,0.094,94218.0,94217.0,0.09500923]
[1765304934333,0.094,94218.0,94217.0,0.04591923]
[1765304934741,0.094,94218.0,94217.0,0.00015923]
[1765304934940,0.094,94218.0,94217.0,0.09500923]
[1765304935736,0.094,94218.0,94217.0,0.04591923]
[1765304936136,0.094,94218.0,94217.0,0.09500923]
[1765304936441,0.094,94218.0,94217.0,0.00015923]
[1765304937434,0.094,94218.0,94217.0,0.04591923]
[1765304938733,0.094,94218.0,94217.0,0.00015923]
[1765304939135,0.03017,94213.0,94210.0,0.0106137]
[1765304939336,0.09363,94211.0,94210.0,0.0106137]
[1765304940441,0.09363,94211.0,94210.0,0.0116137]
[1765304941443,0.09363,94211.0,94210.0,0.1064637]
[1765304942942,0.12395923,94220.0,94219.0,0.1054627]
[1765304943736,0.09378923,94220.0,94219.0,0.1054627]
[1765304944137,0.09478923,94220.0,94219.0,0.1054627]
[1765304946250,0.00115923,94220.0,94219.0,0.1054627]
[1765304947546,0.04956923,94220.0,94219.0,0.1054627]
[1765304948548,0.09728923,94220.0,94219.0,0.1054627]
[1765304949353,0.00115923,94220.0,94219.0,0.13383642]
[1765304949758,0.00115923,94220.0,94219.0,0.1054627]
[1765304949957,0.09728923,94220.0,94219.0,0.13383642]
[1765304950557,0.00115923,94220.0,94219.0,0.1054627]
[1765304950763,0.04956923,94220.0,94219.0,0.1054627]
[1765304951364,0.09728923,94220.0,94219.0,0.13383642]
[1765304951567,0.00115923,94220.0,94219.0,0.13383642]
[1765304951758,0.09728923,94220.0,94219.0,0.1054627]
[1765304951958,0.00115923,94220.0,94219.0,0.1054627]
[1765304952155,0.00115923,94220.0,94219.0,0.13383598]
[1765304952351,0.09728923,94220.0,94219.0,0.1054627]
[1765304952866,0.12683923,94220.0,94219.0,0.1054627]
[1765304953258,0.09728923,94220.0,94219.0,0.1054627]
[1765304953466,0.04956923,94220.0,94219.0,0.133837]
[1765304953769,0.12683923,94220.0,94219.0,0.1054627]
[1765304957360,0.12683923,94220.0,94219.0,0.0106127]
[1765304958167,0.0106127,94219.0,94216.0,0.010613]
[1765304958467,0.09613,94214.0,94213.0,0.0106133]
[1765304958658,0.0106132,94215.0,94191.0,0.0283743]
[1765304958659,0.09705,94202.0,94191.0,0.0283743]
[1765304958862,0.09705,94202.0,94201.0,0.09246923]
[1765304959769,0.09705,94202.0,94201.0,0.09446923]
[1765304959959,0.09705,94206.0,94205.0,0.09231]
[1765304960371,0.09705,94206.0,94205.0,0.1029242]
[1765304960571,0.09705,94206.0,94205.0,0.0106142]
[1765304960961,0.09705,94206.0,94205.0,0.1029242]
[1765304961161,0.09705,94206.0,94205.0,0.1049242]
[1765304961372,0.09705,94206.0,94205.0,0.1059242]
[1765304967279,0.12675923,94220.0,94219.0,0.1029227]
[1765304968469,0.12775923,94220.0,94219.0,0.1029227]
[1765304972876,0.0106135,94214.0,94213.0,0.0106133]
[1765304973080,0.1076629,94217.0,94216.0,0.0106128]
[1765304974772,0.09805,94217.0,94216.0,0.0570228]
[1765304974974,0.09805,94217.0,94216.0,0.1029228]
[1765304978174,0.09805,94217.0,94216.0,0.0106128]
[1765304978572,0.09805,94217.0,94216.0,0.0570228]
[1765304978878,0.09805,94217.0,94216.0,0.1029228]
[1765304979081,0.09805,94217.0,94216.0,0.0570228]
[1765304979279,0.09805,94217.0,94216.0,0.0106128]
[1765304981786,0.09805,94217.0,94216.0,0.1029228]
[1765304985690,0.04834,94217.0,94216.0,0.1029228]
[1765304986083,0.001,94217.0,94216.0,0.1029228]
[1765304986481,0.04834,94217.0,94216.0,0.1029228]
[1765304987382,0.09805,94217.0,94216.0,0.1029228]
[1765304991783,0.103753,94216.0,94215.0,0.0106131]
[1765304991985,0.1037536,94211.0,94210.0,0.0106135]
[1765304992186,0.1037536,94211.0,94201.0,0.02856186]
[1765304992187,0.0106146,94202.0,94201.0,0.10506393]
[1765304992388,0.09314,94202.0,94201.0,0.09444923]
[1765304992682,0.09314,94202.0,94201.0,0.00015923]
[1765304993285,0.09314,94202.0,94201.0,0.00315923]
[1765304993487,0.09318,94202.0,94201.0,0.00315923]
[1765304993790,0.09418,94202.0,94201.0,0.09444923]
[1765304994387,0.09418,94202.0,94201.0,0.09544923]
[1765304994891,0.09418,94202.0,94201.0,0.00115923]
[1765304995382,0.09318,94202.0,94201.0,0.00115923]
[1765304996088,0.09318,94202.0,94201.0,0.00215923]
[1765304996290,0.09314,94191.0,94190.0,0.02946432]
[1765304996482,0.1037558,94191.0,94190.0,0.00106169]
[1765304996788,0.1037558,94191.0,94190.0,1.69e-06]
[1765304998298,0.1037568,94182.0,94181.0,0.00015923]
[1765304999598,0.1047568,94182.0,94181.0,0.00015923]
[1765305000198,0.09414,94182.0,94181.0,0.00015923]
[1765305000799,0.1047568,94182.0,94181.0,0.00015923]
[1765305001001,0.09314,94166.0,94161.0,0.02841671]
[1765305001201,0.09314,94166.0,94165.0,0.01168077]
[1765305001501,0.12094,94176.0,94175.0,0.1049076]
[1765305001688,0.04699,94182.0,94181.0,0.1049069]
[1765305001994,0.09414,94182.0,94181.0,0.1049069]
[1765305002201,0.09314,94182.0,94181.0,0.1049069]
[1765305002994,0.09314,94182.0,94181.0,0.1089069]
[1765305003593,0.09314,94182.0,94181.0,0.1079069]
[1765305003996,0.09314,94182.0,94181.0,0.1109069]
[1765305005594,0.00015923,94191.0,94190.0,0.1067159]
[1765305005806,0.04880923,94191.0,94190.0,0.1067159]
[1765305006796,0.04880923,94191.0,94190.0,0.1087159]
[1765305007496,0.00015923,94191.0,94190.0,0.1097159]
[1765305007805,0.09667,94202.0,94201.0,0.1067147]
[1765305008099,4e-05,94202.0,94201.0,0.1067147]
[1765305009798,4e-05,94202.0,94201.0,0.1087147]
[1765305010204,4e-05,94202.0,94201.0,0.1107147]
[1765305010800,0.09667,94202.0,94201.0,0.1107147]
[1765305013403,0.09667,94202.0,94201.0,0.004]
[1765305014205,0.09667,94202.0,94192.0,0.00015923]
[1765305014206,0.1072456,94193.0,94192.0,0.00015923]
[1765305016108,0.09663,94193.0,94192.0,0.04891923]
[1765305016306,0.1347849,94200.0,94199.0,0.1067149]
[1765305016612,0.1347849,94200.0,94199.0,0.0106149]
[1765305017215,0.09663,94200.0,94199.0,0.1067149]
[1765305017515,4e-05,94202.0,94201.0,0.04876]
[1765305017709,4e-05,94202.0,94201.0,0.0961]
[1765305018916,4e-05,94202.0,94201.0,0.0971]
[1765305019122,0.04869,94202.0,94201.0,0.0971]
[1765305019305,0.09741,94202.0,94201.0,0.0981]
[1765305019506,0.09741,94202.0,94201.0,0.002]
[1765305020520,0.05631595,94202.0,94201.0,0.002]
[1765305021406,0.05631595,94202.0,94201.0,0.001]
[1765305021605,0.05731595,94202.0,94201.0,0.001]
[1765305021808,0.09693,94200.0,94199.0,0.0106149]
[1765305023509,0.09693,94200.0,94199.0,0.0116149]
[1765305024814,0.09693,94200.0,94199.0,0.001]
[1765305026117,0.12717,94194.0,94193.0,0.0106155]
[1765305026314,0.1075455,94194.0,94193.0,0.1089755]
[1765305026523,0.09693,94194.0,94193.0,0.1089755]
[1765305026724,0.12717,94194.0,94193.0,0.0106155]
[1765305029318,0.12717,94194.0,94193.0,0.001]
[1765305031024,0.1075468,94182.0,94181.0,0.02841671]
[1765305031219,0.1075472,94179.0,94178.0,0.0106172]